Workbook

Sheet Normalverteilung
A1: Zahlenwerte zum Erzeugen der Graphen, vgl. die verwendeten Formeln | L1: Theoretische Verteilungen -- Normalverteilung und Standardnormalverteilung
B2: X | C2: Z | D2: f(x) | E2: F(x) | F2: f(z) | G2: F(z) | H2: - f(a) | I2: f(b) - | L2: Mittelwert: | N2: 200 | S2: links: W(Z < a) für | X2: a = | Y2: -1 | Z2: =3+Y2 -> 2 | AF2: rechts: W(Z > a) für | AG2: b = | AH2: 3 | AI2: =AH2+3 -> 6
A3: 1 | B3: =$N$2+C3*$N$3 -> 170.6 | C3: =C4-0.06 -> -2.94 | D3: =NORMDIST(B3,$N$2,$N$3,FALSE) -> 0.0005296343865 | E3: =NORMDIST(B3,$N$2,$N$3,TRUE) -> 0.001641061234 | F3: =NORMDIST(C3,0,1,0) -> 0.005296343865 | G3: =NORMSDIST(C3) -> 0.001641061234 | H3: =IF($Y$2>=$C3,$F3,0) -> 0.005296343865 | I3: =IF($AH$2<=$C3,$F3,0) -> 0 | L3: Standardabw.: | N3: 10 | W3: F(a)= | X3: =NORMSDIST(Y2) -> 0.1586552539 | AF3: 1-F(b)= | AG3: =NORMSDIST(AH2) -> 0.998650102
A4: 2 | B4: 171.2 | C4: =C5-0.06 -> -2.88 | D4: 0.0006306726396 | E4: 0.001988375855 | F4: =NORMDIST(C4,0,1,0) -> 0.006306726396 | G4: =NORMSDIST(C4) -> 0.001988375855 | H4: 0.006306726396 | I4: 0 | L4: Dichtefunktion:
A5: 3 | B5: 171.8 | C5: -2.82 | D5: 0.0007482872526 | E5: 0.002401182474 | F5: 0.007482872526 | G5: 0.002401182474 | H5: 0.007482872526 | I5: 0
A6: 4 | B6: 172.4 | C6: -2.76 | D6: 0.0008846454398 | E6: 0.002890068076 | F6: 0.008846454398 | G6: 0.002890068076 | H6: 0.008846454398 | I6: 0
A7: 5 | B7: 173 | C7: -2.7 | D7: 0.001042093481 | E7: 0.003466973803 | F7: 0.01042093481 | G7: 0.003466973803 | H7: 0.01042093481 | I7: 0
A8: 6 | B8: 173.6 | C8: -2.64 | D8: 0.001223152635 | E8: 0.004145301361 | F8: 0.01223152635 | G8: 0.004145301361 | H8: 0.01223152635 | I8: 0
A9: 7 | B9: 174.2 | C9: -2.58 | D9: 0.001430510899 | E9: 0.004940015758 | F9: 0.01430510899 | G9: 0.004940015758 | H9: 0.01430510899 | I9: 0
A10: 8 | B10: 174.8 | C10: -2.52 | D10: 0.001667010084 | E10: 0.005867741715 | F10: 0.01667010084 | G10: 0.005867741715 | H10: 0.01667010084 | I10: 0
A11: 9 | B11: 175.4 | C11: -2.46 | D11: 0.001935627673 | E11: 0.006946850789 | F11: 0.01935627673 | G11: 0.006946850789 | H11: 0.01935627673 | I11: 0
A12: 10 | B12: 176 | C12: -2.4 | D12: 0.002239453029 | E12: 0.008197535925 | F12: 0.02239453029 | G12: 0.008197535925 | H12: 0.02239453029 | I12: 0
A13: 11 | B13: 176.6 | C13: -2.34 | D13: 0.002581657547 | E13: 0.009641869945 | F13: 0.02581657547 | G13: 0.009641869945 | H13: 0.02581657547 | I13: 0
A14: 12 | B14: 177.2 | C14: -2.28 | D14: 0.002965458485 | E14: 0.01130384424 | F14: 0.02965458485 | G14: 0.01130384424 | H14: 0.02965458485 | I14: 0
A15: 13 | B15: 177.8 | C15: -2.22 | D15: 0.003394076318 | E15: 0.01320938381 | F15: 0.03394076318 | G15: 0.01320938381 | H15: 0.03394076318 | I15: 0
A16: 14 | B16: 178.4 | C16: -2.16 | D16: 0.003870685615 | E16: 0.01538633478 | F16: 0.03870685615 | G16: 0.01538633478 | H16: 0.03870685615 | I16: 0
A17: 15 | B17: 179 | C17: -2.1 | D17: 0.004398359598 | E17: 0.01786442056 | F17: 0.04398359598 | G17: 0.01786442056 | H17: 0.04398359598 | I17: 0
A18: 16 | B18: 179.6 | C18: -2.04 | D18: 0.004980008774 | E18: 0.02067516287 | F18: 0.04980008774 | G18: 0.02067516287 | H18: 0.04980008774 | I18: 0
A19: 17 | B19: 180.2 | C19: -1.98 | D19: 0.00561831419 | E19: 0.02385176434 | F19: 0.0561831419 | G19: 0.02385176434 | H19: 0.0561831419 | I19: 0
A20: 18 | B20: 180.8 | C20: -1.92 | D20: 0.006315656144 | E20: 0.0274289497 | F20: 0.06315656144 | G20: 0.0274289497 | H20: 0.06315656144 | I20: 0 | L20: Verteilungsfunktion:
A21: 19 | B21: 181.4 | C21: -1.86 | D21: 0.007074039346 | E21: 0.03144276298 | F21: 0.07074039346 | G21: 0.03144276298 | H21: 0.07074039346 | I21: 0 | S21: x-Werte: | V21: =$N$2-$N$3*2 -> 180 | Y21: =$N$2-$N$3 -> 190 | AA21: =B52 -> 200 | AD21: =$N$2+$N$3 -> 210 | AF21: =$N$2+$N$3*2 -> 220
A22: 20 | B22: 182 | C22: -1.8 | D22: 0.00789501583 | E22: 0.03593031911 | F22: 0.0789501583 | G22: 0.03593031911 | H22: 0.0789501583 | I22: 0
A23: 21 | B23: 182.6 | C23: -1.74 | D23: 0.008779607061 | E23: 0.04092950898 | F23: 0.08779607061 | G23: 0.04092950898 | H23: 0.08779607061 | I23: 0
A24: 22 | B24: 183.2 | C24: -1.68 | D24: 0.009728226933 | E24: 0.04647865786 | F24: 0.09728226933 | G24: 0.04647865786 | H24: 0.09728226933 | I24: 0
A25: 23 | B25: 183.8 | C25: -1.62 | D25: 0.01074060751 | E25: 0.05261613845 | F25: 0.1074060751 | G25: 0.05261613845 | H25: 0.1074060751 | I25: 0
A26: 24 | B26: 184.4 | C26: -1.56 | D26: 0.01181572951 | E26: 0.05937994059 | F26: 0.1181572951 | G26: 0.05937994059 | H26: 0.1181572951 | I26: 0
A27: 25 | B27: 185 | C27: -1.5 | D27: 0.01295175957 | E27: 0.06680720127 | F27: 0.1295175957 | G27: 0.06680720127 | H27: 0.1295175957 | I27: 0
A28: 26 | B28: 185.6 | C28: -1.44 | D28: 0.01414599652 | E28: 0.07493369953 | F28: 0.1414599652 | G28: 0.07493369953 | H28: 0.1414599652 | I28: 0
A29: 27 | B29: 186.2 | C29: -1.38 | D29: 0.01539482868 | E29: 0.08379332242 | F29: 0.1539482868 | G29: 0.08379332242 | H29: 0.1539482868 | I29: 0
A30: 28 | B30: 186.8 | C30: -1.32 | D30: 0.01669370417 | E30: 0.09341750899 | F30: 0.1669370417 | G30: 0.09341750899 | H30: 0.1669370417 | I30: 0
A31: 29 | B31: 187.4 | C31: -1.26 | D31: 0.01803711632 | E31: 0.1038346811 | F31: 0.1803711632 | G31: 0.1038346811 | H31: 0.1803711632 | I31: 0
A32: 30 | B32: 188 | C32: -1.2 | D32: 0.0194186055 | E32: 0.1150696702 | F32: 0.194186055 | G32: 0.1150696702 | H32: 0.194186055 | I32: 0
A33: 31 | B33: 188.6 | C33: -1.14 | D33: 0.020830779 | E33: 0.1271431506 | F33: 0.20830779 | G33: 0.1271431506 | H33: 0.20830779 | I33: 0
A34: 32 | B34: 189.2 | C34: -1.08 | D34: 0.02226534988 | E34: 0.1400710901 | F34: 0.2226534988 | G34: 0.1400710901 | H34: 0.2226534988 | I34: 0
A35: 33 | B35: =$N$2+C35*$N$3 -> 189.8 | C35: -1.02 | D35: =NORMDIST(B35,$N$2,$N$3,FALSE) -> 0.0237131952 | E35: =NORMDIST(B35,$N$2,$N$3,TRUE) -> 0.1538642304 | F35: 0.237131952 | G35: 0.1538642304 | H35: =IF($Y$2>=$C35,$F35,0) -> 0.237131952 | I35: =IF($AH$2<=$C35,$F35,0) -> 0
A36: 34 | B36: 190.4 | C36: -0.96 | D36: 0.02516443411 | E36: 0.1685276075 | F36: 0.2516443411 | G36: 0.1685276075 | H36: 0 | I36: 0 | Y36: Mittelwert z=0 bzw. m
A37: 35 | B37: 191 | C37: -0.9 | D37: 0.02660852499 | E37: 0.1840601253 | F37: 0.2660852499 | G37: 0.1840601253 | H37: 0 | I37: 0
A38: 36 | B38: 191.6 | C38: -0.84 | D38: 0.02803438108 | E38: 0.2004541933 | F38: 0.2803438108 | G38: 0.2004541933 | H38: 0 | I38: 0 | L38: Die Flächen werden als Säulendiagramm erzeugt,
A39: 37 | B39: 192.2 | C39: -0.78 | D39: 0.02943050298 | E39: 0.2176954376 | F39: 0.2943050298 | G39: 0.2176954376 | H39: 0 | I39: 0 | L39: bei dem sich die - sehr schmalen - Säulen berühren
A40: 38 | B40: 192.8 | C40: -0.72 | D40: 0.03078512605 | E40: 0.2357624978 | F40: 0.3078512605 | G40: 0.2357624978 | H40: 0 | I40: 0 | L40: und so als Fläche erscheinen
A41: 39 | B41: 193.4 | C41: -0.66 | D41: 0.03208638038 | E41: 0.2546269147 | F41: 0.3208638038 | G41: 0.2546269147 | H41: 0 | I41: 0 | L41: Die Markierungen nach unten und links in der Verteilungsfunktion
A42: 40 | B42: 194 | C42: -0.6 | D42: 0.03332246029 | E42: 0.2742531178 | F42: 0.3332246029 | G42: 0.2742531178 | H42: 0 | I42: 0 | L42: sind "Fehlerindikatoren" (Diagrammelement hinzufügen)
A43: 41 | B43: 194.6 | C43: -0.54 | D43: 0.03448180014 | E43: 0.2945985162 | F43: 0.3448180014 | G43: 0.2945985162 | H43: 0 | I43: 0 | L43: Beides anschaulich beschrieben bei Andreas Thehos:
A44: 42 | B44: 195.2 | C44: -0.48 | D44: 0.03555325285 | E44: 0.3156136965 | F44: 0.3555325285 | G44: 0.3156136965 | H44: 0 | I44: 0 | L44: https://www.youtube.com/watch?v=eBKLXe8JGSY
A45: 43 | B45: 195.8 | C45: -0.42 | D45: 0.03652626726 | E45: 0.3372427268 | F45: 0.3652626726 | G45: 0.3372427268 | H45: 0 | I45: 0
A46: 44 | B46: 196.4 | C46: -0.36 | D46: 0.03739106054 | E46: 0.3594235668 | F46: 0.3739106054 | G46: 0.3594235668 | H46: 0 | I46: 0
A47: 45 | B47: 197 | C47: -0.3 | D47: 0.03813878155 | E47: 0.3820885778 | F47: 0.3813878155 | G47: 0.3820885778 | H47: 0 | I47: 0
A48: 46 | B48: 197.6 | C48: -0.24 | D48: 0.03876166151 | E48: 0.4051651283 | F48: 0.3876166151 | G48: 0.4051651283 | H48: 0 | I48: 0
A49: 47 | B49: 198.2 | C49: -0.18 | D49: 0.03925314831 | E49: 0.4285762841 | F49: 0.3925314831 | G49: 0.4285762841 | H49: 0 | I49: 0
A50: 48 | B50: 198.8 | C50: -0.12 | D50: 0.03960802118 | E50: 0.452241574 | F50: 0.3960802118 | G50: 0.452241574 | H50: 0 | I50: 0
A51: 49 | B51: 199.4 | C51: =C52-0.06 -> -0.06 | D51: 0.03982248302 | E51: 0.4760778173 | F51: =NORMDIST(C51,0,1,0) -> 0.3982248302 | G51: =NORMSDIST(C51) -> 0.4760778173 | H51: 0 | I51: 0
A52: 50 | B52: =N2 -> 200 | C52: =(B52-$N$2)/$N$3 -> 0 | D52: 0.03989422804 | E52: 0.5 | F52: =NORMDIST(C52,0,1,0) -> 0.3989422804 | G52: =NORMSDIST(C52) -> 0.5 | H52: 0 | I52: 0
A53: 51 | B53: =$N$2+C53*$N$3 -> 200.6 | C53: =C52+0.06 -> 0.06 | D53: 0.03982248302 | E53: 0.5239221827 | F53: =NORMDIST(C53,0,1,0) -> 0.3982248302 | G53: =NORMSDIST(C53) -> 0.5239221827 | H53: 0 | I53: 0
A54: 52 | B54: 201.2 | C54: =C53+0.06 -> 0.12 | D54: 0.03960802118 | E54: 0.547758426 | F54: =NORMDIST(C54,0,1,0) -> 0.3960802118 | G54: =NORMSDIST(C54) -> 0.547758426 | H54: 0 | I54: 0
A55: 53 | B55: 201.8 | C55: 0.18 | D55: 0.03925314831 | E55: 0.5714237159 | F55: 0.3925314831 | G55: 0.5714237159 | H55: 0 | I55: 0
A56: 54 | B56: 202.4 | C56: 0.24 | D56: 0.03876166151 | E56: 0.5948348717 | F56: 0.3876166151 | G56: 0.5948348717 | H56: 0 | I56: 0
A57: 55 | B57: 203 | C57: 0.3 | D57: 0.03813878155 | E57: 0.6179114222 | F57: 0.3813878155 | G57: 0.6179114222 | H57: 0 | I57: 0
A58: 56 | B58: 203.6 | C58: 0.36 | D58: 0.03739106054 | E58: 0.6405764332 | F58: 0.3739106054 | G58: 0.6405764332 | H58: 0 | I58: 0
A59: 57 | B59: 204.2 | C59: 0.42 | D59: 0.03652626726 | E59: 0.6627572732 | F59: 0.3652626726 | G59: 0.6627572732 | H59: 0 | I59: 0
A60: 58 | B60: 204.8 | C60: 0.48 | D60: 0.03555325285 | E60: 0.6843863035 | F60: 0.3555325285 | G60: 0.6843863035 | H60: 0 | I60: 0
A61: 59 | B61: 205.4 | C61: 0.54 | D61: 0.03448180014 | E61: 0.7054014838 | F61: 0.3448180014 | G61: 0.7054014838 | H61: 0 | I61: 0
A62: 60 | B62: 206 | C62: 0.6 | D62: 0.03332246029 | E62: 0.7257468822 | F62: 0.3332246029 | G62: 0.7257468822 | H62: 0 | I62: 0
A63: 61 | B63: 206.6 | C63: 0.66 | D63: 0.03208638038 | E63: 0.7453730853 | F63: 0.3208638038 | G63: 0.7453730853 | H63: 0 | I63: 0
A64: 62 | B64: 207.2 | C64: 0.72 | D64: 0.03078512605 | E64: 0.7642375022 | F64: 0.3078512605 | G64: 0.7642375022 | H64: 0 | I64: 0
A65: 63 | B65: 207.8 | C65: 0.78 | D65: 0.02943050298 | E65: 0.7823045624 | F65: 0.2943050298 | G65: 0.7823045624 | H65: 0 | I65: 0
A66: 64 | B66: 208.4 | C66: 0.84 | D66: 0.02803438108 | E66: 0.7995458067 | F66: 0.2803438108 | G66: 0.7995458067 | H66: 0 | I66: 0
A67: 65 | B67: 209 | C67: 0.9 | D67: =NORMDIST(B67,$N$2,$N$3,FALSE) -> 0.02660852499 | E67: =NORMDIST(B67,$N$2,$N$3,TRUE) -> 0.8159398747 | F67: 0.2660852499 | G67: 0.8159398747 | H67: =IF($Y$2>=$C67,$F67,0) -> 0 | I67: =IF($AH$2<=$C67,$F67,0) -> 0
A68: 66 | B68: 209.6 | C68: 0.96 | D68: 0.02516443411 | E68: 0.8314723925 | F68: 0.2516443411 | G68: 0.8314723925 | H68: 0 | I68: 0
A69: 67 | B69: 210.2 | C69: 1.02 | D69: 0.0237131952 | E69: 0.8461357696 | F69: 0.237131952 | G69: 0.8461357696 | H69: 0 | I69: 0
A70: 68 | B70: 210.8 | C70: 1.08 | D70: 0.02226534988 | E70: 0.8599289099 | F70: 0.2226534988 | G70: 0.8599289099 | H70: 0 | I70: 0
A71: 69 | B71: 211.4 | C71: 1.14 | D71: 0.020830779 | E71: 0.8728568494 | F71: 0.20830779 | G71: 0.8728568494 | H71: 0 | I71: 0
A72: 70 | B72: 212 | C72: 1.2 | D72: 0.0194186055 | E72: 0.8849303298 | F72: 0.194186055 | G72: 0.8849303298 | H72: 0 | I72: 0
A73: 71 | B73: 212.6 | C73: 1.26 | D73: 0.01803711632 | E73: 0.8961653189 | F73: 0.1803711632 | G73: 0.8961653189 | H73: 0 | I73: 0
A74: 72 | B74: 213.2 | C74: 1.32 | D74: 0.01669370417 | E74: 0.906582491 | F74: 0.1669370417 | G74: 0.906582491 | H74: 0 | I74: 0
A75: 73 | B75: 213.8 | C75: 1.38 | D75: 0.01539482868 | E75: 0.9162066776 | F75: 0.1539482868 | G75: 0.9162066776 | H75: 0 | I75: 0
A76: 74 | B76: 214.4 | C76: 1.44 | D76: 0.01414599652 | E76: 0.9250663005 | F76: 0.1414599652 | G76: 0.9250663005 | H76: 0 | I76: 0
A77: 75 | B77: 215 | C77: 1.5 | D77: 0.01295175957 | E77: 0.9331927987 | F77: 0.1295175957 | G77: 0.9331927987 | H77: 0 | I77: 0
A78: 76 | B78: 215.6 | C78: 1.56 | D78: 0.01181572951 | E78: 0.9406200594 | F78: 0.1181572951 | G78: 0.9406200594 | H78: 0 | I78: 0
A79: 77 | B79: 216.2 | C79: 1.62 | D79: 0.01074060751 | E79: 0.9473838615 | F79: 0.1074060751 | G79: 0.9473838615 | H79: 0 | I79: 0
A80: 78 | B80: 216.8 | C80: 1.68 | D80: 0.009728226933 | E80: 0.9535213421 | F80: 0.09728226933 | G80: 0.9535213421 | H80: 0 | I80: 0
A81: 79 | B81: 217.4 | C81: 1.74 | D81: 0.008779607061 | E81: 0.959070491 | F81: 0.08779607061 | G81: 0.959070491 | H81: 0 | I81: 0
A82: 80 | B82: 218 | C82: 1.8 | D82: 0.00789501583 | E82: 0.9640696809 | F82: 0.0789501583 | G82: 0.9640696809 | H82: 0 | I82: 0
A83: 81 | B83: 218.6 | C83: 1.86 | D83: 0.007074039346 | E83: 0.968557237 | F83: 0.07074039346 | G83: 0.968557237 | H83: 0 | I83: 0
A84: 82 | B84: 219.2 | C84: 1.92 | D84: 0.006315656144 | E84: 0.9725710503 | F84: 0.06315656144 | G84: 0.9725710503 | H84: 0 | I84: 0
A85: 83 | B85: =$N$2+C85*$N$3 -> 219.8 | C85: 1.98 | D85: 0.00561831419 | E85: 0.9761482357 | F85: 0.0561831419 | G85: 0.9761482357 | H85: 0 | I85: 0
A86: 84 | B86: 220.4 | C86: 2.04 | D86: 0.004980008774 | E86: 0.9793248371 | F86: 0.04980008774 | G86: 0.9793248371 | H86: 0 | I86: 0
A87: 85 | B87: 221 | C87: 2.1 | D87: 0.004398359598 | E87: 0.9821355794 | F87: 0.04398359598 | G87: 0.9821355794 | H87: 0 | I87: 0
A88: 86 | B88: 221.6 | C88: 2.16 | D88: 0.003870685615 | E88: 0.9846136652 | F88: 0.03870685615 | G88: 0.9846136652 | H88: 0 | I88: 0
A89: 87 | B89: 222.2 | C89: 2.22 | D89: 0.003394076318 | E89: 0.9867906162 | F89: 0.03394076318 | G89: 0.9867906162 | H89: 0 | I89: 0
A90: 88 | B90: 222.8 | C90: 2.28 | D90: 0.002965458485 | E90: 0.9886961558 | F90: 0.02965458485 | G90: 0.9886961558 | H90: 0 | I90: 0
A91: 89 | B91: 223.4 | C91: 2.34 | D91: 0.002581657547 | E91: 0.9903581301 | F91: 0.02581657547 | G91: 0.9903581301 | H91: 0 | I91: 0
A92: 90 | B92: 224 | C92: 2.4 | D92: 0.002239453029 | E92: 0.9918024641 | F92: 0.02239453029 | G92: 0.9918024641 | H92: 0 | I92: 0
A93: 91 | B93: 224.6 | C93: 2.46 | D93: 0.001935627673 | E93: 0.9930531492 | F93: 0.01935627673 | G93: 0.9930531492 | H93: 0 | I93: 0
A94: 92 | B94: 225.2 | C94: 2.52 | D94: 0.001667010084 | E94: 0.9941322583 | F94: 0.01667010084 | G94: 0.9941322583 | H94: 0 | I94: 0
A95: 93 | B95: 225.8 | C95: 2.58 | D95: 0.001430510899 | E95: 0.9950599842 | F95: 0.01430510899 | G95: 0.9950599842 | H95: 0 | I95: 0
A96: 94 | B96: 226.4 | C96: 2.64 | D96: 0.001223152635 | E96: 0.9958546986 | F96: 0.01223152635 | G96: 0.9958546986 | H96: 0 | I96: 0
A97: 95 | B97: 227 | C97: 2.7 | D97: 0.001042093481 | E97: 0.9965330262 | F97: 0.01042093481 | G97: 0.9965330262 | H97: 0 | I97: 0
A98: 96 | B98: 227.6 | C98: 2.76 | D98: 0.0008846454398 | E98: 0.9971099319 | F98: 0.008846454398 | G98: 0.9971099319 | H98: 0 | I98: 0
A99: 97 | B99: 228.2 | C99: 2.82 | D99: 0.0007482872526 | E99: 0.9975988175 | F99: 0.007482872526 | G99: 0.9975988175 | H99: 0 | I99: 0
A100: 98 | B100: 228.8 | C100: 2.88 | D100: 0.0006306726396 | E100: 0.9980116241 | F100: 0.006306726396 | G100: 0.9980116241 | H100: 0 | I100: 0
A101: 99 | B101: 229.4 | C101: 2.94 | D101: 0.0005296343865 | E101: 0.9983589388 | F101: 0.005296343865 | G101: 0.9983589388 | H101: 0 | I101: 0

Sheet Normalverteilung (BocksBeispie)
A1: Zahlenwerte zum Erzeugen der Graphen, vgl. die verwendeten Formeln | L1: Theoretische Verteilungen -- Normalverteilung und Standardnormalverteilung
B2: X | C2: Z | D2: f(x) | E2: F(x) | F2: f(z) | G2: F(z) | H2: - f(a) | I2: f(b) - | L2: Mittelwert: | N2: 0.33 | S2: links: W(Z < a) für | X2: =3+V3 -> 2 | AC2: rechts: W(Z > a) für | AF2: =AC3+3 -> 5
A3: 1 | B3: =$N$2+C3*$N$3 -> 0.24 | C3: =C4-0.06 -> -3 | D3: =NORMDIST(B3,$N$2,$N$3,FALSE) -> 0.1477282804 | E3: =NORMDIST(B3,$N$2,$N$3,TRUE) -> 0.001349898032 | F3: =NORMDIST(C3,0,1,0) -> 0.004431848412 | G3: =NORMSDIST(C3) -> 0.001349898032 | H3: =IF($V$3>=$C3,$F3,0) -> 0.004431848412 | I3: =IF($AC$3<=$C3,$F3,0) -> 0 | L3: Standardabw.: | N3: 0.03 | U3: a = | V3: -1 | AB3: b = | AC3: 2
A4: 2 | B4: 0.2418 | C4: -2.94 | D4: 0.1765447955 | E4: 0.001641061234 | F4: 0.005296343865 | G4: 0.001641061234 | H4: 0.005296343865 | I4: 0 | L4: Dichtefunktion: | U4: F(a)= | V4: =NORMSDIST(V3) -> 0.1586552539 | AC4: 1-F(b)= | AD4: =1-NORMSDIST(AC3) -> 0.02275013195 | AE4: =NORMSDIST(AC3) -> 0.9772498681
A5: 3 | B5: 0.2436 | C5: -2.88 | D5: =NORMDIST(B5,$N$2,$N$3,FALSE) -> 0.2102242132 | E5: =NORMDIST(B5,$N$2,$N$3,TRUE) -> 0.001988375855 | F5: =NORMDIST(C5,0,1,0) -> 0.006306726396 | G5: =NORMSDIST(C5) -> 0.001988375855 | H5: 0.006306726396 | I5: 0
A6: 4 | B6: 0.2454 | C6: -2.82 | D6: 0.2494290842 | E6: 0.002401182474 | F6: 0.007482872526 | G6: 0.002401182474 | H6: 0.007482872526 | I6: 0
A7: 5 | B7: 0.2472 | C7: -2.76 | D7: 0.2948818133 | E7: 0.002890068076 | F7: 0.008846454398 | G7: 0.002890068076 | H7: 0.008846454398 | I7: 0
A8: 6 | B8: 0.249 | C8: -2.7 | D8: 0.3473644938 | E8: 0.003466973803 | F8: 0.01042093481 | G8: 0.003466973803 | H8: 0.01042093481 | I8: 0
A9: 7 | B9: 0.2508 | C9: -2.64 | D9: 0.407717545 | E9: 0.004145301361 | F9: 0.01223152635 | G9: 0.004145301361 | H9: 0.01223152635 | I9: 0
A10: 8 | B10: 0.2526 | C10: -2.58 | D10: 0.4768369665 | E10: 0.004940015758 | F10: 0.01430510899 | G10: 0.004940015758 | H10: 0.01430510899 | I10: 0
A11: 9 | B11: 0.2544 | C11: -2.52 | D11: 0.5556700279 | E11: 0.005867741715 | F11: 0.01667010084 | G11: 0.005867741715 | H11: 0.01667010084 | I11: 0
A12: 10 | B12: 0.2562 | C12: -2.46 | D12: 0.6452092244 | E12: 0.006946850789 | F12: 0.01935627673 | G12: 0.006946850789 | H12: 0.01935627673 | I12: 0
A13: 11 | B13: 0.258 | C13: -2.4 | D13: 0.7464843432 | E13: 0.008197535925 | F13: 0.02239453029 | G13: 0.008197535925 | H13: 0.02239453029 | I13: 0
A14: 12 | B14: 0.2598 | C14: -2.34 | D14: 0.8605525157 | E14: 0.009641869945 | F14: 0.02581657547 | G14: 0.009641869945 | H14: 0.02581657547 | I14: 0
A15: 13 | B15: 0.2616 | C15: -2.28 | D15: 0.9884861616 | E15: 0.01130384424 | F15: 0.02965458485 | G15: 0.01130384424 | H15: 0.02965458485 | I15: 0
A16: 14 | B16: 0.2634 | C16: -2.22 | D16: 1.131358773 | E16: 0.01320938381 | F16: 0.03394076318 | G16: 0.01320938381 | H16: 0.03394076318 | I16: 0
A17: 15 | B17: 0.2652 | C17: -2.16 | D17: 1.290228538 | E17: 0.01538633478 | F17: 0.03870685615 | G17: 0.01538633478 | H17: 0.03870685615 | I17: 0
A18: 16 | B18: 0.267 | C18: -2.1 | D18: 1.466119866 | E18: 0.01786442056 | F18: 0.04398359598 | G18: 0.01786442056 | H18: 0.04398359598 | I18: 0 | R18: z
A19: 17 | B19: 0.2688 | C19: -2.04 | D19: 1.660002925 | E19: 0.02067516287 | F19: 0.04980008774 | G19: 0.02067516287 | H19: 0.04980008774 | I19: 0
A20: 18 | B20: 0.2706 | C20: -1.98 | D20: 1.872771397 | E20: 0.02385176434 | F20: 0.0561831419 | G20: 0.02385176434 | H20: 0.0561831419 | I20: 0 | L20: Verteilungsfunktion: | S20: x-Werte: | U20: =$N$2-$N$3*2 -> 0.27 | W20: =$N$2-$N$3 -> 0.3 | Y20: =B53 -> 0.33 | AA20: =$N$2+$N$3 -> 0.36 | AC20: =$N$2+$N$3*2 -> 0.39
A21: 19 | B21: 0.2724 | C21: -1.92 | D21: 2.105218715 | E21: 0.0274289497 | F21: 0.06315656144 | G21: 0.0274289497 | H21: 0.06315656144 | I21: 0
A22: 20 | B22: 0.2742 | C22: -1.86 | D22: 2.358013115 | E22: 0.03144276298 | F22: 0.07074039346 | G22: 0.03144276298 | H22: 0.07074039346 | I22: 0
A23: 21 | B23: 0.276 | C23: -1.8 | D23: 2.631671943 | E23: 0.03593031911 | F23: 0.0789501583 | G23: 0.03593031911 | H23: 0.0789501583 | I23: 0
A24: 22 | B24: 0.2778 | C24: -1.74 | D24: 2.926535687 | E24: 0.04092950898 | F24: 0.08779607061 | G24: 0.04092950898 | H24: 0.08779607061 | I24: 0
A25: 23 | B25: 0.2796 | C25: -1.68 | D25: 3.242742311 | E25: 0.04647865786 | F25: 0.09728226933 | G25: 0.04647865786 | H25: 0.09728226933 | I25: 0
A26: 24 | B26: 0.2814 | C26: -1.62 | D26: 3.580202504 | E26: 0.05261613845 | F26: 0.1074060751 | G26: 0.05261613845 | H26: 0.1074060751 | I26: 0
A27: 25 | B27: 0.2832 | C27: -1.56 | D27: 3.938576502 | E27: 0.05937994059 | F27: 0.1181572951 | G27: 0.05937994059 | H27: 0.1181572951 | I27: 0
A28: 26 | B28: 0.285 | C28: -1.5 | D28: 4.317253189 | E28: 0.06680720127 | F28: 0.1295175957 | G28: 0.06680720127 | H28: 0.1295175957 | I28: 0
A29: 27 | B29: 0.2868 | C29: -1.44 | D29: 4.715332174 | E29: 0.07493369953 | F29: 0.1414599652 | G29: 0.07493369953 | H29: 0.1414599652 | I29: 0
A30: 28 | B30: 0.2886 | C30: -1.38 | D30: 5.131609559 | E30: 0.08379332242 | F30: 0.1539482868 | G30: 0.08379332242 | H30: 0.1539482868 | I30: 0
A31: 29 | B31: 0.2904 | C31: -1.32 | D31: 5.564568058 | E31: 0.09341750899 | F31: 0.1669370417 | G31: 0.09341750899 | H31: 0.1669370417 | I31: 0
A32: 30 | B32: 0.2922 | C32: -1.26 | D32: 6.012372108 | E32: 0.1038346811 | F32: 0.1803711632 | G32: 0.1038346811 | H32: 0.1803711632 | I32: 0
A33: 31 | B33: 0.294 | C33: -1.2 | D33: 6.472868499 | E33: 0.1150696702 | F33: 0.194186055 | G33: 0.1150696702 | H33: 0.194186055 | I33: 0
A34: 32 | B34: 0.2958 | C34: -1.14 | D34: 6.943593002 | E34: 0.1271431506 | F34: 0.20830779 | G34: 0.1271431506 | H34: 0.20830779 | I34: 0
A35: 33 | B35: 0.2976 | C35: -1.08 | D35: 7.421783292 | E35: 0.1400710901 | F35: 0.2226534988 | G35: 0.1400710901 | H35: 0.2226534988 | I35: 0 | W35: Mittelwert z=0 bzw. m
A36: 34 | B36: =$N$2+C36*$N$3 -> 0.2994 | C36: -1.02 | D36: =NORMDIST(B36,$N$2,$N$3,FALSE) -> 7.904398401 | E36: =NORMDIST(B36,$N$2,$N$3,TRUE) -> 0.1538642304 | F36: 0.237131952 | G36: 0.1538642304 | H36: =IF($V$3>=$C36,$F36,0) -> 0.237131952 | I36: =IF($AC$3<=$C36,$F36,0) -> 0 | L36: Die Flächen werden als Säulendiagramm erzeugt,
A37: 35 | B37: 0.3012 | C37: -0.96 | D37: 8.388144703 | E37: 0.1685276075 | F37: 0.2516443411 | G37: 0.1685276075 | H37: 0 | I37: 0 | L37: bei dem sich die - sehr schmalen - Säulen berühren
A38: 36 | B38: 0.303 | C38: -0.9 | D38: 8.86950833 | E38: 0.1840601253 | F38: 0.2660852499 | G38: 0.1840601253 | H38: 0 | I38: 0 | L38: und so als Fläche erscheinen
A39: 37 | B39: 0.3048 | C39: -0.84 | D39: 9.344793695 | E39: 0.2004541933 | F39: 0.2803438108 | G39: 0.2004541933 | H39: 0 | I39: 0 | L39: Die Markierungen nach unten und links in der Verteilungsfunktion
A40: 38 | B40: 0.3066 | C40: -0.78 | D40: 9.81016766 | E40: 0.2176954376 | F40: 0.2943050298 | G40: 0.2176954376 | H40: 0 | I40: 0 | L40: sind "Fehlerindikatoren" (Diagrammelement hinzufügen)
A41: 39 | B41: 0.3084 | C41: -0.72 | D41: 10.26170868 | E41: 0.2357624978 | F41: 0.3078512605 | G41: 0.2357624978 | H41: 0 | I41: 0 | L41: Beides anschaulich beschrieben bei Andreas Thehos:
A42: 40 | B42: 0.3102 | C42: -0.66 | D42: 10.69546013 | E42: 0.2546269147 | F42: 0.3208638038 | G42: 0.2546269147 | H42: 0 | I42: 0 | L42: https://www.youtube.com/watch?v=eBKLXe8JGSY
A43: 41 | B43: 0.312 | C43: -0.6 | D43: 11.10748676 | E43: 0.2742531178 | F43: 0.3332246029 | G43: 0.2742531178 | H43: 0 | I43: 0
A44: 42 | B44: 0.3138 | C44: -0.54 | D44: 11.49393338 | E44: 0.2945985162 | F44: 0.3448180014 | G44: 0.2945985162 | H44: 0 | I44: 0
A45: 43 | B45: 0.3156 | C45: -0.48 | D45: 11.85108428 | E45: 0.3156136965 | F45: 0.3555325285 | G45: 0.3156136965 | H45: 0 | I45: 0
A46: 44 | B46: 0.3174 | C46: -0.42 | D46: 12.17542242 | E46: 0.3372427268 | F46: 0.3652626726 | G46: 0.3372427268 | H46: 0 | I46: 0
A47: 45 | B47: 0.3192 | C47: -0.36 | D47: 12.46368685 | E47: 0.3594235668 | F47: 0.3739106054 | G47: 0.3594235668 | H47: 0 | I47: 0
A48: 46 | B48: 0.321 | C48: -0.3 | D48: 12.71292718 | E48: 0.3820885778 | F48: 0.3813878155 | G48: 0.3820885778 | H48: 0 | I48: 0
A49: 47 | B49: 0.3228 | C49: -0.24 | D49: 12.92055384 | E49: 0.4051651283 | F49: 0.3876166151 | G49: 0.4051651283 | H49: 0 | I49: 0
A50: 48 | B50: 0.3246 | C50: -0.18 | D50: 13.08438277 | E50: 0.4285762841 | F50: 0.3925314831 | G50: 0.4285762841 | H50: 0 | I50: 0
A51: 49 | B51: 0.3264 | C51: -0.12 | D51: 13.20267373 | E51: 0.452241574 | F51: 0.3960802118 | G51: 0.452241574 | H51: 0 | I51: 0
A52: 50 | B52: 0.3282 | C52: =C53-0.06 -> -0.06 | D52: 13.27416101 | E52: 0.4760778173 | F52: =NORMDIST(C52,0,1,0) -> 0.3982248302 | G52: =NORMSDIST(C52) -> 0.4760778173 | H52: 0 | I52: 0
A53: 51 | B53: =N2 -> 0.33 | C53: =(B53-$N$2)/$N$3 -> 0 | D53: 13.29807601 | E53: 0.5 | F53: =NORMDIST(C53,0,1,0) -> 0.3989422804 | G53: =NORMSDIST(C53) -> 0.5 | H53: 0 | I53: 0
A54: 52 | B54: =$N$2+C54*$N$3 -> 0.3318 | C54: =C53+0.06 -> 0.06 | D54: 13.27416101 | E54: 0.5239221827 | F54: =NORMDIST(C54,0,1,0) -> 0.3982248302 | G54: =NORMSDIST(C54) -> 0.5239221827 | H54: 0 | I54: 0
A55: 53 | B55: 0.3336 | C55: =C54+0.06 -> 0.12 | D55: 13.20267373 | E55: 0.547758426 | F55: =NORMDIST(C55,0,1,0) -> 0.3960802118 | G55: =NORMSDIST(C55) -> 0.547758426 | H55: 0 | I55: 0
A56: 54 | B56: 0.3354 | C56: 0.18 | D56: 13.08438277 | E56: 0.5714237159 | F56: 0.3925314831 | G56: 0.5714237159 | H56: 0 | I56: 0
A57: 55 | B57: 0.3372 | C57: 0.24 | D57: 12.92055384 | E57: 0.5948348717 | F57: 0.3876166151 | G57: 0.5948348717 | H57: 0 | I57: 0
A58: 56 | B58: 0.339 | C58: 0.3 | D58: 12.71292718 | E58: 0.6179114222 | F58: 0.3813878155 | G58: 0.6179114222 | H58: 0 | I58: 0
A59: 57 | B59: 0.3408 | C59: 0.36 | D59: 12.46368685 | E59: 0.6405764332 | F59: 0.3739106054 | G59: 0.6405764332 | H59: 0 | I59: 0
A60: 58 | B60: 0.3426 | C60: 0.42 | D60: 12.17542242 | E60: 0.6627572732 | F60: 0.3652626726 | G60: 0.6627572732 | H60: 0 | I60: 0
A61: 59 | B61: 0.3444 | C61: 0.48 | D61: 11.85108428 | E61: 0.6843863035 | F61: 0.3555325285 | G61: 0.6843863035 | H61: 0 | I61: 0
A62: 60 | B62: 0.3462 | C62: 0.54 | D62: 11.49393338 | E62: 0.7054014838 | F62: 0.3448180014 | G62: 0.7054014838 | H62: 0 | I62: 0
A63: 61 | B63: 0.348 | C63: 0.6 | D63: 11.10748676 | E63: 0.7257468822 | F63: 0.3332246029 | G63: 0.7257468822 | H63: 0 | I63: 0
A64: 62 | B64: 0.3498 | C64: 0.66 | D64: 10.69546013 | E64: 0.7453730853 | F64: 0.3208638038 | G64: 0.7453730853 | H64: 0 | I64: 0
A65: 63 | B65: 0.3516 | C65: 0.72 | D65: 10.26170868 | E65: 0.7642375022 | F65: 0.3078512605 | G65: 0.7642375022 | H65: 0 | I65: 0
A66: 64 | B66: 0.3534 | C66: 0.78 | D66: 9.81016766 | E66: 0.7823045624 | F66: 0.2943050298 | G66: 0.7823045624 | H66: 0 | I66: 0
A67: 65 | B67: 0.3552 | C67: 0.84 | D67: 9.344793695 | E67: 0.7995458067 | F67: 0.2803438108 | G67: 0.7995458067 | H67: 0 | I67: 0
A68: 66 | B68: 0.357 | C68: 0.9 | D68: =NORMDIST(B68,$N$2,$N$3,FALSE) -> 8.86950833 | E68: =NORMDIST(B68,$N$2,$N$3,TRUE) -> 0.8159398747 | F68: 0.2660852499 | G68: 0.8159398747 | H68: =IF($V$3>=$C68,$F68,0) -> 0 | I68: =IF($AC$3<=$C68,$F68,0) -> 0
A69: 67 | B69: 0.3588 | C69: 0.96 | D69: 8.388144703 | E69: 0.8314723925 | F69: 0.2516443411 | G69: 0.8314723925 | H69: 0 | I69: 0
A70: 68 | B70: 0.3606 | C70: 1.02 | D70: 7.904398401 | E70: 0.8461357696 | F70: 0.237131952 | G70: 0.8461357696 | H70: 0 | I70: 0
A71: 69 | B71: 0.3624 | C71: 1.08 | D71: 7.421783292 | E71: 0.8599289099 | F71: 0.2226534988 | G71: 0.8599289099 | H71: 0 | I71: 0
A72: 70 | B72: 0.3642 | C72: 1.14 | D72: 6.943593002 | E72: 0.8728568494 | F72: 0.20830779 | G72: 0.8728568494 | H72: 0 | I72: 0
A73: 71 | B73: 0.366 | C73: 1.2 | D73: 6.472868499 | E73: 0.8849303298 | F73: 0.194186055 | G73: 0.8849303298 | H73: 0 | I73: 0
A74: 72 | B74: 0.3678 | C74: 1.26 | D74: 6.012372108 | E74: 0.8961653189 | F74: 0.1803711632 | G74: 0.8961653189 | H74: 0 | I74: 0
A75: 73 | B75: 0.3696 | C75: 1.32 | D75: 5.564568058 | E75: 0.906582491 | F75: 0.1669370417 | G75: 0.906582491 | H75: 0 | I75: 0
A76: 74 | B76: 0.3714 | C76: 1.38 | D76: 5.131609559 | E76: 0.9162066776 | F76: 0.1539482868 | G76: 0.9162066776 | H76: 0 | I76: 0
A77: 75 | B77: 0.3732 | C77: 1.44 | D77: 4.715332174 | E77: 0.9250663005 | F77: 0.1414599652 | G77: 0.9250663005 | H77: 0 | I77: 0
A78: 76 | B78: 0.375 | C78: 1.5 | D78: 4.317253189 | E78: 0.9331927987 | F78: 0.1295175957 | G78: 0.9331927987 | H78: 0 | I78: 0
A79: 77 | B79: 0.3768 | C79: 1.56 | D79: 3.938576502 | E79: 0.9406200594 | F79: 0.1181572951 | G79: 0.9406200594 | H79: 0 | I79: 0
A80: 78 | B80: 0.3786 | C80: 1.62 | D80: 3.580202504 | E80: 0.9473838615 | F80: 0.1074060751 | G80: 0.9473838615 | H80: 0 | I80: 0
A81: 79 | B81: 0.3804 | C81: 1.68 | D81: 3.242742311 | E81: 0.9535213421 | F81: 0.09728226933 | G81: 0.9535213421 | H81: 0 | I81: 0
A82: 80 | B82: 0.3822 | C82: 1.74 | D82: 2.926535687 | E82: 0.959070491 | F82: 0.08779607061 | G82: 0.959070491 | H82: 0 | I82: 0
A83: 81 | B83: 0.384 | C83: 1.8 | D83: 2.631671943 | E83: 0.9640696809 | F83: 0.0789501583 | G83: 0.9640696809 | H83: 0 | I83: 0
A84: 82 | B84: 0.3858 | C84: 1.86 | D84: 2.358013115 | E84: 0.968557237 | F84: 0.07074039346 | G84: 0.968557237 | H84: 0 | I84: 0
A85: 83 | B85: 0.3876 | C85: 1.92 | D85: 2.105218715 | E85: 0.9725710503 | F85: 0.06315656144 | G85: 0.9725710503 | H85: 0 | I85: 0
A86: 84 | B86: =$N$2+C86*$N$3 -> 0.3894 | C86: 1.98 | D86: 1.872771397 | E86: 0.9761482357 | F86: 0.0561831419 | G86: 0.9761482357 | H86: 0 | I86: 0
A87: 85 | B87: 0.3912 | C87: 2.04 | D87: 1.660002925 | E87: 0.9793248371 | F87: 0.04980008774 | G87: 0.9793248371 | H87: 0 | I87: 0.04980008774
A88: 86 | B88: 0.393 | C88: 2.1 | D88: 1.466119866 | E88: 0.9821355794 | F88: 0.04398359598 | G88: 0.9821355794 | H88: 0 | I88: 0.04398359598
A89: 87 | B89: 0.3948 | C89: 2.16 | D89: 1.290228538 | E89: 0.9846136652 | F89: 0.03870685615 | G89: 0.9846136652 | H89: 0 | I89: 0.03870685615
A90: 88 | B90: 0.3966 | C90: 2.22 | D90: 1.131358773 | E90: 0.9867906162 | F90: 0.03394076318 | G90: 0.9867906162 | H90: 0 | I90: 0.03394076318
A91: 89 | B91: 0.3984 | C91: 2.28 | D91: 0.9884861616 | E91: 0.9886961558 | F91: 0.02965458485 | G91: 0.9886961558 | H91: 0 | I91: 0.02965458485
A92: 90 | B92: 0.4002 | C92: 2.34 | D92: 0.8605525157 | E92: 0.9903581301 | F92: 0.02581657547 | G92: 0.9903581301 | H92: 0 | I92: 0.02581657547
A93: 91 | B93: 0.402 | C93: 2.4 | D93: 0.7464843432 | E93: 0.9918024641 | F93: 0.02239453029 | G93: 0.9918024641 | H93: 0 | I93: 0.02239453029
A94: 92 | B94: 0.4038 | C94: 2.46 | D94: 0.6452092244 | E94: 0.9930531492 | F94: 0.01935627673 | G94: 0.9930531492 | H94: 0 | I94: 0.01935627673
A95: 93 | B95: 0.4056 | C95: 2.52 | D95: 0.5556700279 | E95: 0.9941322583 | F95: 0.01667010084 | G95: 0.9941322583 | H95: 0 | I95: 0.01667010084
A96: 94 | B96: 0.4074 | C96: 2.58 | D96: 0.4768369665 | E96: 0.9950599842 | F96: 0.01430510899 | G96: 0.9950599842 | H96: 0 | I96: 0.01430510899
A97: 95 | B97: 0.4092 | C97: 2.64 | D97: 0.407717545 | E97: 0.9958546986 | F97: 0.01223152635 | G97: 0.9958546986 | H97: 0 | I97: 0.01223152635
A98: 96 | B98: 0.411 | C98: 2.7 | D98: 0.3473644938 | E98: 0.9965330262 | F98: 0.01042093481 | G98: 0.9965330262 | H98: 0 | I98: 0.01042093481
A99: 97 | B99: 0.4128 | C99: 2.76 | D99: 0.2948818133 | E99: 0.9971099319 | F99: 0.008846454398 | G99: 0.9971099319 | H99: 0 | I99: 0.008846454398
A100: 98 | B100: 0.4146 | C100: 2.82 | D100: =NORMDIST(B100,$N$2,$N$3,FALSE) -> 0.2494290842 | E100: =NORMDIST(B100,$N$2,$N$3,TRUE) -> 0.9975988175 | F100: =NORMDIST(C100,0,1,0) -> 0.007482872526 | G100: =NORMSDIST(C100) -> 0.9975988175 | H100: 0 | I100: 0.007482872526
A101: 99 | B101: 0.4164 | C101: 2.88 | D101: 0.2102242132 | E101: 0.9980116241 | F101: 0.006306726396 | G101: 0.9980116241 | H101: 0 | I101: 0.006306726396
A102: 100 | B102: 0.4182 | C102: 2.94 | D102: 0.1765447955 | E102: 0.9983589388 | F102: 0.005296343865 | G102: 0.9983589388 | H102: 0 | I102: 0.005296343865
A103: 101 | B103: 0.42 | C103: 3 | D103: 0.1477282804 | E103: 0.998650102 | F103: 0.004431848412 | G103: 0.998650102 | H103: 0 | I103: 0.004431848412

Sheet Konfidenzintervall MW
A1: Zahlenwerte zum Erzeugen der Graphen, vgl. die verwendeten Formeln | N1: Konfidenzintervall für den MIttelwert - Standardnormalverteilung des Stichprobenmittels xquer
B2: X | C2: Z | D2: f(x) | E2: -f(gu) | F2: f(go) | G2: F(x) | H2: f(z) | I2: F(z) | J2: - f(a) | K2: f(b) - | N2: Mittelwert: | Q2: =Q40 -> 48.5 | W2: links: W(Z < gu) | Z2: =3+X3 -> 1.040036015 | AF2: rechts: W(Z > go) | AH2: =AE3+3 -> 4.959963985
A3: 1 | B3: =$Q$2+C3*$Q$3 -> 48.125 | C3: =C4-0.06 -> -3 | D3: =NORMDIST(B3,$Q$2,$Q$3,FALSE) -> 0.0354547873 | E3: =IF(B3<=$AH$45,D3,0) -> 0.0354547873 | F3: =IF(B3>=$AH$47,D3,0) -> 0 | G3: =NORMDIST(B3,$Q$2,$Q$3,TRUE) -> 0.001349898032 | H3: =NORMDIST(C3,0,1,0) -> 0.004431848412 | I3: =NORMSDIST(C3) -> 0.001349898032 | J3: =IF($X$3>=$C3,$H3,0) -> 0.004431848412 | K3: =IF($AE$3<=$C3,$H3,0) -> 0 | N3: Standardfehler SigmaXquer | Q3: =S41 -> 0.125 | W3: gu | X3: =IF(X39<>"",-X39,-3) -> -1.959963985 | AD3: go | AE3: =IF(AND(X39<>"",O42=2),X39,3) -> 1.959963985
A4: 2 | B4: 48.1325 | C4: -2.94 | D4: 0.04237075092 | E4: =IF(B4<=$AH$45,D4,0) -> 0.04237075092 | F4: =IF(B4>=$AH$47,D4,0) -> 0 | G4: 0.001641061234 | H4: 0.005296343865 | I4: 0.001641061234 | J4: 0.005296343865 | K4: 0 | N4: Dichtefunktion: | W4: F(a)= | X4: =NORMSDIST(X3) -> 0.025 | AE4: 1-F(b)= | AF4: =1-NORMSDIST(AE3) -> 0.025 | AG4: =NORMSDIST(AE3) -> 0.975
A5: 3 | B5: 48.14 | C5: -2.88 | D5: 0.05045381117 | E5: 0.05045381117 | F5: 0 | G5: 0.001988375855 | H5: 0.006306726396 | I5: 0.001988375855 | J5: 0.006306726396 | K5: 0
A6: 4 | B6: 48.1475 | C6: -2.82 | D6: 0.05986298021 | E6: 0.05986298021 | F6: 0 | G6: 0.002401182474 | H6: 0.007482872526 | I6: 0.002401182474 | J6: 0.007482872526 | K6: 0
A7: 5 | B7: 48.155 | C7: -2.76 | D7: 0.07077163519 | E7: 0.07077163519 | F7: 0 | G7: 0.002890068076 | H7: 0.008846454398 | I7: 0.002890068076 | J7: 0.008846454398 | K7: 0
A8: 6 | B8: 48.1625 | C8: -2.7 | D8: 0.08336747852 | E8: 0.08336747852 | F8: 0 | G8: 0.003466973803 | H8: 0.01042093481 | I8: 0.003466973803 | J8: 0.01042093481 | K8: 0
A9: 7 | B9: 48.17 | C9: -2.64 | D9: 0.09785221081 | E9: 0.09785221081 | F9: 0 | G9: 0.004145301361 | H9: 0.01223152635 | I9: 0.004145301361 | J9: 0.01223152635 | K9: 0
A10: 8 | B10: 48.1775 | C10: -2.58 | D10: 0.114440872 | E10: 0.114440872 | F10: 0 | G10: 0.004940015758 | H10: 0.01430510899 | I10: 0.004940015758 | J10: 0.01430510899 | K10: 0
A11: 9 | B11: 48.185 | C11: -2.52 | D11: 0.1333608067 | E11: 0.1333608067 | F11: 0 | G11: 0.005867741715 | H11: 0.01667010084 | I11: 0.005867741715 | J11: 0.01667010084 | K11: 0
A12: 10 | B12: 48.1925 | C12: -2.46 | D12: 0.1548502139 | E12: 0.1548502139 | F12: 0 | G12: 0.006946850789 | H12: 0.01935627673 | I12: 0.006946850789 | J12: 0.01935627673 | K12: 0
A13: 11 | B13: 48.2 | C13: -2.4 | D13: 0.1791562424 | E13: 0.1791562424 | F13: 0 | G13: 0.008197535925 | H13: 0.02239453029 | I13: 0.008197535925 | J13: 0.02239453029 | K13: 0
A14: 12 | B14: 48.2075 | C14: -2.34 | D14: 0.2065326038 | E14: 0.2065326038 | F14: 0 | G14: 0.009641869945 | H14: 0.02581657547 | I14: 0.009641869945 | J14: 0.02581657547 | K14: 0
A15: 13 | B15: 48.215 | C15: -2.28 | D15: 0.2372366788 | E15: 0.2372366788 | F15: 0 | G15: 0.01130384424 | H15: 0.02965458485 | I15: 0.01130384424 | J15: 0.02965458485 | K15: 0
A16: 14 | B16: 48.2225 | C16: -2.22 | D16: 0.2715261055 | E16: 0.2715261055 | F16: 0 | G16: 0.01320938381 | H16: 0.03394076318 | I16: 0.01320938381 | J16: 0.03394076318 | K16: 0
A17: 15 | B17: 48.23 | C17: -2.16 | D17: 0.3096548492 | E17: 0.3096548492 | F17: 0 | G17: 0.01538633478 | H17: 0.03870685615 | I17: 0.01538633478 | J17: 0.03870685615 | K17: 0
A18: 16 | B18: 48.2375 | C18: -2.1 | D18: 0.3518687678 | E18: 0.3518687678 | F18: 0 | G18: 0.01786442056 | H18: 0.04398359598 | I18: 0.01786442056 | J18: 0.04398359598 | K18: 0 | T18: z
A19: 17 | B19: 48.245 | C19: -2.04 | D19: 0.3984007019 | E19: 0.3984007019 | F19: 0 | G19: 0.02067516287 | H19: 0.04980008774 | I19: 0.02067516287 | J19: 0.04980008774 | K19: 0
A20: 18 | B20: 48.2525 | C20: -1.98 | D20: 0.4494651352 | E20: 0.4494651352 | F20: 0 | G20: 0.02385176434 | H20: 0.0561831419 | I20: 0.02385176434 | J20: 0.0561831419 | K20: 0 | N20: Verteilungsfunktion: | U20: Xquer-Werte: | W20: =$Q$2-$Q$3*2 -> 48.25 | Y20: =$Q$2-$Q$3 -> 48.375 | AA20: =B53 -> 48.5 | AC20: =$Q$2+$Q$3 -> 48.625 | AE20: =$Q$2+$Q$3*2 -> 48.75
A21: 19 | B21: 48.26 | C21: -1.92 | D21: 0.5052524915 | E21: 0 | F21: 0 | G21: 0.0274289497 | H21: 0.06315656144 | I21: 0.0274289497 | J21: 0 | K21: 0
A22: 20 | B22: 48.2675 | C22: -1.86 | D22: 0.5659231477 | E22: 0 | F22: 0 | G22: 0.03144276298 | H22: 0.07074039346 | I22: 0.03144276298 | J22: 0 | K22: 0
A23: 21 | B23: 48.275 | C23: -1.8 | D23: 0.6316012664 | E23: 0 | F23: 0 | G23: 0.03593031911 | H23: 0.0789501583 | I23: 0.03593031911 | J23: 0 | K23: 0
A24: 22 | B24: 48.2825 | C24: -1.74 | D24: 0.7023685649 | E24: 0 | F24: 0 | G24: 0.04092950898 | H24: 0.08779607061 | I24: 0.04092950898 | J24: 0 | K24: 0
A25: 23 | B25: 48.29 | C25: -1.68 | D25: 0.7782581547 | E25: 0 | F25: 0 | G25: 0.04647865786 | H25: 0.09728226933 | I25: 0.04647865786 | J25: 0 | K25: 0
A26: 24 | B26: 48.2975 | C26: -1.62 | D26: 0.8592486009 | E26: 0 | F26: 0 | G26: 0.05261613845 | H26: 0.1074060751 | I26: 0.05261613845 | J26: 0 | K26: 0
A27: 25 | B27: 48.305 | C27: -1.56 | D27: 0.9452583605 | E27: 0 | F27: 0 | G27: 0.05937994059 | H27: 0.1181572951 | I27: 0.05937994059 | J27: 0 | K27: 0
A28: 26 | B28: 48.3125 | C28: -1.5 | D28: 1.036140765 | E28: 0 | F28: 0 | G28: 0.06680720127 | H28: 0.1295175957 | I28: 0.06680720127 | J28: 0 | K28: 0
A29: 27 | B29: 48.32 | C29: -1.44 | D29: 1.131679722 | E29: 0 | F29: 0 | G29: 0.07493369953 | H29: 0.1414599652 | I29: 0.07493369953 | J29: 0 | K29: 0
A30: 28 | B30: 48.3275 | C30: -1.38 | D30: 1.231586294 | E30: 0 | F30: 0 | G30: 0.08379332242 | H30: 0.1539482868 | I30: 0.08379332242 | J30: 0 | K30: 0
A31: 29 | B31: 48.335 | C31: -1.32 | D31: 1.335496334 | E31: 0 | F31: 0 | G31: 0.09341750899 | H31: 0.1669370417 | I31: 0.09341750899 | J31: 0 | K31: 0
A32: 30 | B32: 48.3425 | C32: -1.26 | D32: 1.442969306 | E32: 0 | F32: 0 | G32: 0.1038346811 | H32: 0.1803711632 | I32: 0.1038346811 | J32: 0 | K32: 0
A33: 31 | B33: 48.35 | C33: -1.2 | D33: 1.55348844 | E33: 0 | F33: 0 | G33: 0.1150696702 | H33: 0.194186055 | I33: 0.1150696702 | J33: 0 | K33: 0
A34: 32 | B34: 48.3575 | C34: -1.14 | D34: 1.66646232 | E34: 0 | F34: 0 | G34: 0.1271431506 | H34: 0.20830779 | I34: 0.1271431506 | J34: 0 | K34: 0
A35: 33 | B35: =$Q$2+C35*$Q$3 -> 48.365 | C35: -1.08 | D35: =NORMDIST(B35,$Q$2,$Q$3,FALSE) -> 1.78122799 | E35: 0 | F35: 0 | G35: =NORMDIST(B35,$Q$2,$Q$3,TRUE) -> 0.1400710901 | H35: 0.2226534988 | I35: 0.1400710901 | J35: 0 | K35: 0 | Y35: Mittelwert z=0 bzw. Xquer
A36: 34 | B36: 48.3725 | C36: -1.02 | D36: 1.897055616 | E36: 0 | F36: 0 | G36: 0.1538642304 | H36: 0.237131952 | I36: 0.1538642304 | J36: 0 | K36: 0 | N36: 8.2.1 Konfidenzintervall für den Mittelwert
A37: 35 | B37: 48.38 | C37: -0.96 | D37: 2.013154729 | E37: 0 | F37: 0 | G37: 0.1685276075 | H37: 0.2516443411 | I37: 0.1685276075 | J37: 0 | K37: 0 | N37: NUR die gelb hinterlegten Felder eingeben: (nur entweder s oder s!) | W37: Ablesewert zc
A38: 36 | B38: 48.3875 | C38: -0.9 | D38: 2.128681999 | E38: 0 | F38: 0 | G38: 0.1840601253 | H38: 0.2660852499 | I38: 0.1840601253 | J38: 0 | K38: 0 | N38: Vorgegebene Werte: | P38: (Eingerahmte Felder werden errechnet) | W38: =IF(O42=2,"1-a/2",IF(O42=1,"1-a","------")) -> 1-a/2 | X38: =IF(O42=2,1-O41/2,IF(O42=1,1-O41,"Seiten eingeben! 1 oder 2!")) -> 0.975
A39: 37 | B39: 48.395 | C39: -0.84 | D39: 2.242750487 | E39: 0 | F39: 0 | G39: 0.2004541933 | H39: 0.2803438108 | I39: 0.2004541933 | J39: 0 | K39: 0 | N39: s | P39: s | Q39: 1 | R39: --> s oder s: | S39: =IF(AND(O39>0,Q39=0),O39,IF(AND(O39=0,Q39>0),Q39," - ??? -")) -> 1 | W39: kritisches |zc| | X39: =NORMINV(X38,0,1) -> 1.959963985
A40: 38 | B40: 48.4025 | C40: -0.78 | D40: 2.354440238 | E40: 0 | F40: 0 | G40: 0.2176954376 | H40: 0.2943050298 | I40: 0.2176954376 | J40: 0 | K40: 0 | P40: x_quer | Q40: 48.5 | R40: daraus errechnet:
A41: 39 | B41: 48.41 | C41: -0.72 | D41: 2.462810084 | E41: 0 | F41: 0 | G41: 0.2357624978 | H41: 0.3078512605 | I41: 0.2357624978 | J41: 0 | K41: 0 | N41: a | O41: 0.05 | P41: n | Q41: 64 | R41: Sigma Xquer | S41: =IF(AND(Q41>0,Q42>0,Q43>0.05), (S39/(Q41^0.5))*SQRT((Q42-Q41)/(Q42-1)), S39/(Q41^0.5)) -> 0.125 | U41: Konfidenzintervall -> Formel (8-17)
A42: 40 | B42: 48.4175 | C42: -0.66 | D42: 2.56691043 | E42: 0 | F42: 0 | G42: 0.2546269147 | H42: 0.3208638038 | I42: 0.2546269147 | J42: 0 | K42: 0 | N42: Seiten: | O42: 2 | P42: N | U42: Es geht um die (unbekannte) Lage des wahren Mittelwertes m bei bekanntem Xquer
A43: 41 | B43: 48.425 | C43: -0.6 | D43: 2.665796823 | E43: 0 | F43: 0 | G43: 0.2742531178 | H43: 0.3332246029 | I43: 0.2742531178 | J43: 0 | K43: 0 | P43: n/N | Q43: =IF(AND(Q41>0,Q42>0),Q41/Q42," -- ") -> -- | R43: =IF(AND(Q41>0,Q42>0,Q43>0.05),"Endlichkeitskorrektur !!"," (o.k.) ") -> (o.k.)
A44: 42 | B44: 48.4325 | C44: -0.54 | D44: 2.758544012 | E44: 0 | F44: 0 | G44: 0.2945985162 | H44: 0.3448180014 | I44: 0.2945985162 | J44: 0 | K44: 0 | U44: gu = Xquer - Zc * s_Xquer =
A45: 43 | B45: 48.44 | C45: -0.48 | D45: 2.844260228 | E45: 0 | F45: 0 | G45: 0.3156136965 | H45: 0.3555325285 | I45: 0.3156136965 | J45: 0 | K45: 0 | Z45: ( | AA45: =Q40 -> 48.5 | AB45: -- | AC45: =X39 -> 1.959963985 | AD45: * | AE45: =S41 -> 0.125 | AF45: ) | AG45: = | AH45: =AA45-AC45*AE45 -> 48.2550045
A46: 44 | B46: 48.4475 | C46: -0.42 | D46: 2.922101381 | E46: 0 | F46: 0 | G46: 0.3372427268 | H46: 0.3652626726 | I46: 0.3372427268 | J46: 0 | K46: 0 | U46: go = Xquer + Zc * s_Xquer =
A47: 45 | B47: 48.455 | C47: -0.36 | D47: 2.991284843 | E47: 0 | F47: 0 | G47: 0.3594235668 | H47: 0.3739106054 | I47: 0.3594235668 | J47: 0 | K47: 0 | Z47: ( | AA47: =AA45 -> 48.5 | AB47: + | AC47: =AC45 -> 1.959963985 | AD47: * | AE47: =AE45 -> 0.125 | AF47: ) | AG47: = | AH47: =AA45+AC45*AE45 -> 48.7449955
A48: 46 | B48: 48.4625 | C48: -0.3 | D48: 3.051102524 | E48: 0 | F48: 0 | G48: 0.3820885778 | H48: 0.3813878155 | I48: 0.3820885778 | J48: 0 | K48: 0
A49: 47 | B49: 48.47 | C49: -0.24 | D49: 3.100932921 | E49: 0 | F49: 0 | G49: 0.4051651283 | H49: 0.3876166151 | I49: 0.4051651283 | J49: 0 | K49: 0
A50: 48 | B50: 48.4775 | C50: -0.18 | D50: 3.140251865 | E50: 0 | F50: 0 | G50: 0.4285762841 | H50: 0.3925314831 | I50: 0.4285762841 | J50: 0 | K50: 0
A51: 49 | B51: 48.485 | C51: -0.12 | D51: 3.168641694 | E51: 0 | F51: 0 | G51: 0.452241574 | H51: 0.3960802118 | I51: 0.452241574 | J51: 0 | K51: 0
A52: 50 | B52: 48.4925 | C52: =C53-0.06 -> -0.06 | D52: 3.185798642 | E52: 0 | F52: 0 | G52: 0.4760778173 | H52: =NORMDIST(C52,0,1,0) -> 0.3982248302 | I52: =NORMSDIST(C52) -> 0.4760778173 | J52: 0 | K52: 0
A53: 51 | B53: =Q2 -> 48.5 | C53: =(B53-$Q$2)/$Q$3 -> 0 | D53: 3.191538243 | E53: 0 | F53: 0 | G53: 0.5 | H53: =NORMDIST(C53,0,1,0) -> 0.3989422804 | I53: =NORMSDIST(C53) -> 0.5 | J53: 0 | K53: 0
A54: 52 | B54: =$Q$2+C54*$Q$3 -> 48.5075 | C54: =C53+0.06 -> 0.06 | D54: 3.185798642 | E54: 0 | F54: 0 | G54: 0.5239221827 | H54: =NORMDIST(C54,0,1,0) -> 0.3982248302 | I54: =NORMSDIST(C54) -> 0.5239221827 | J54: 0 | K54: 0
A55: 53 | B55: 48.515 | C55: =C54+0.06 -> 0.12 | D55: 3.168641694 | E55: 0 | F55: 0 | G55: 0.547758426 | H55: =NORMDIST(C55,0,1,0) -> 0.3960802118 | I55: =NORMSDIST(C55) -> 0.547758426 | J55: 0 | K55: 0
A56: 54 | B56: 48.5225 | C56: 0.18 | D56: 3.140251865 | E56: 0 | F56: 0 | G56: 0.5714237159 | H56: 0.3925314831 | I56: 0.5714237159 | J56: 0 | K56: 0
A57: 55 | B57: 48.53 | C57: 0.24 | D57: 3.100932921 | E57: 0 | F57: 0 | G57: 0.5948348717 | H57: 0.3876166151 | I57: 0.5948348717 | J57: 0 | K57: 0
A58: 56 | B58: 48.5375 | C58: 0.3 | D58: 3.051102524 | E58: 0 | F58: 0 | G58: 0.6179114222 | H58: 0.3813878155 | I58: 0.6179114222 | J58: 0 | K58: 0
A59: 57 | B59: 48.545 | C59: 0.36 | D59: 2.991284843 | E59: 0 | F59: 0 | G59: 0.6405764332 | H59: 0.3739106054 | I59: 0.6405764332 | J59: 0 | K59: 0
A60: 58 | B60: 48.5525 | C60: 0.42 | D60: 2.922101381 | E60: 0 | F60: 0 | G60: 0.6627572732 | H60: 0.3652626726 | I60: 0.6627572732 | J60: 0 | K60: 0
A61: 59 | B61: 48.56 | C61: 0.48 | D61: 2.844260228 | E61: 0 | F61: 0 | G61: 0.6843863035 | H61: 0.3555325285 | I61: 0.6843863035 | J61: 0 | K61: 0
A62: 60 | B62: 48.5675 | C62: 0.54 | D62: 2.758544012 | E62: 0 | F62: 0 | G62: 0.7054014838 | H62: 0.3448180014 | I62: 0.7054014838 | J62: 0 | K62: 0
A63: 61 | B63: 48.575 | C63: 0.6 | D63: 2.665796823 | E63: 0 | F63: 0 | G63: 0.7257468822 | H63: 0.3332246029 | I63: 0.7257468822 | J63: 0 | K63: 0
A64: 62 | B64: 48.5825 | C64: 0.66 | D64: 2.56691043 | E64: 0 | F64: 0 | G64: 0.7453730853 | H64: 0.3208638038 | I64: 0.7453730853 | J64: 0 | K64: 0
A65: 63 | B65: 48.59 | C65: 0.72 | D65: 2.462810084 | E65: 0 | F65: 0 | G65: 0.7642375022 | H65: 0.3078512605 | I65: 0.7642375022 | J65: 0 | K65: 0
A66: 64 | B66: 48.5975 | C66: 0.78 | D66: 2.354440238 | E66: 0 | F66: 0 | G66: 0.7823045624 | H66: 0.2943050298 | I66: 0.7823045624 | J66: 0 | K66: 0
A67: 65 | B67: 48.605 | C67: 0.84 | D67: =NORMDIST(B67,$Q$2,$Q$3,FALSE) -> 2.242750487 | E67: 0 | F67: 0 | G67: =NORMDIST(B67,$Q$2,$Q$3,TRUE) -> 0.7995458067 | H67: 0.2803438108 | I67: 0.7995458067 | J67: =IF($X$3>=$C67,$H67,0) -> 0 | K67: =IF($AE$3<=$C67,$H67,0) -> 0
A68: 66 | B68: 48.6125 | C68: 0.9 | D68: 2.128681999 | E68: =IF(B68<=$AH$45,D68,0) -> 0 | F68: =IF(B68>=$AH$47,D68,0) -> 0 | G68: 0.8159398747 | H68: 0.2660852499 | I68: 0.8159398747 | J68: 0 | K68: 0
A69: 67 | B69: 48.62 | C69: 0.96 | D69: 2.013154729 | E69: 0 | F69: 0 | G69: 0.8314723925 | H69: 0.2516443411 | I69: 0.8314723925 | J69: 0 | K69: 0
A70: 68 | B70: 48.6275 | C70: 1.02 | D70: 1.897055616 | E70: 0 | F70: 0 | G70: 0.8461357696 | H70: 0.237131952 | I70: 0.8461357696 | J70: 0 | K70: 0
A71: 69 | B71: 48.635 | C71: 1.08 | D71: 1.78122799 | E71: 0 | F71: 0 | G71: 0.8599289099 | H71: 0.2226534988 | I71: 0.8599289099 | J71: 0 | K71: 0
A72: 70 | B72: 48.6425 | C72: 1.14 | D72: 1.66646232 | E72: 0 | F72: 0 | G72: 0.8728568494 | H72: 0.20830779 | I72: 0.8728568494 | J72: 0 | K72: 0
A73: 71 | B73: 48.65 | C73: 1.2 | D73: 1.55348844 | E73: 0 | F73: 0 | G73: 0.8849303298 | H73: 0.194186055 | I73: 0.8849303298 | J73: 0 | K73: 0
A74: 72 | B74: 48.6575 | C74: 1.26 | D74: 1.442969306 | E74: 0 | F74: 0 | G74: 0.8961653189 | H74: 0.1803711632 | I74: 0.8961653189 | J74: 0 | K74: 0
A75: 73 | B75: 48.665 | C75: 1.32 | D75: 1.335496334 | E75: 0 | F75: 0 | G75: 0.906582491 | H75: 0.1669370417 | I75: 0.906582491 | J75: 0 | K75: 0
A76: 74 | B76: 48.6725 | C76: 1.38 | D76: 1.231586294 | E76: 0 | F76: 0 | G76: 0.9162066776 | H76: 0.1539482868 | I76: 0.9162066776 | J76: 0 | K76: 0
A77: 75 | B77: 48.68 | C77: 1.44 | D77: 1.131679722 | E77: 0 | F77: 0 | G77: 0.9250663005 | H77: 0.1414599652 | I77: 0.9250663005 | J77: 0 | K77: 0
A78: 76 | B78: 48.6875 | C78: 1.5 | D78: 1.036140765 | E78: 0 | F78: 0 | G78: 0.9331927987 | H78: 0.1295175957 | I78: 0.9331927987 | J78: 0 | K78: 0
A79: 77 | B79: 48.695 | C79: 1.56 | D79: 0.9452583605 | E79: 0 | F79: 0 | G79: 0.9406200594 | H79: 0.1181572951 | I79: 0.9406200594 | J79: 0 | K79: 0
A80: 78 | B80: 48.7025 | C80: 1.62 | D80: 0.8592486009 | E80: 0 | F80: 0 | G80: 0.9473838615 | H80: 0.1074060751 | I80: 0.9473838615 | J80: 0 | K80: 0
A81: 79 | B81: 48.71 | C81: 1.68 | D81: 0.7782581547 | E81: 0 | F81: 0 | G81: 0.9535213421 | H81: 0.09728226933 | I81: 0.9535213421 | J81: 0 | K81: 0
A82: 80 | B82: 48.7175 | C82: 1.74 | D82: 0.7023685649 | E82: 0 | F82: 0 | G82: 0.959070491 | H82: 0.08779607061 | I82: 0.959070491 | J82: 0 | K82: 0
A83: 81 | B83: 48.725 | C83: 1.8 | D83: 0.6316012664 | E83: 0 | F83: 0 | G83: 0.9640696809 | H83: 0.0789501583 | I83: 0.9640696809 | J83: 0 | K83: 0
A84: 82 | B84: 48.7325 | C84: 1.86 | D84: 0.5659231477 | E84: 0 | F84: 0 | G84: 0.968557237 | H84: 0.07074039346 | I84: 0.968557237 | J84: 0 | K84: 0
A85: 83 | B85: 48.74 | C85: 1.92 | D85: 0.5052524915 | E85: 0 | F85: 0 | G85: 0.9725710503 | H85: 0.06315656144 | I85: 0.9725710503 | J85: 0 | K85: 0
A86: 84 | B86: =$Q$2+C86*$Q$3 -> 48.7475 | C86: 1.98 | D86: 0.4494651352 | E86: 0 | F86: 0.4494651352 | G86: 0.9761482357 | H86: 0.0561831419 | I86: 0.9761482357 | J86: 0 | K86: 0.0561831419
A87: 85 | B87: 48.755 | C87: 2.04 | D87: 0.3984007019 | E87: 0 | F87: 0.3984007019 | G87: 0.9793248371 | H87: 0.04980008774 | I87: 0.9793248371 | J87: 0 | K87: 0.04980008774
A88: 86 | B88: 48.7625 | C88: 2.1 | D88: 0.3518687678 | E88: 0 | F88: 0.3518687678 | G88: 0.9821355794 | H88: 0.04398359598 | I88: 0.9821355794 | J88: 0 | K88: 0.04398359598
A89: 87 | B89: 48.77 | C89: 2.16 | D89: 0.3096548492 | E89: 0 | F89: 0.3096548492 | G89: 0.9846136652 | H89: 0.03870685615 | I89: 0.9846136652 | J89: 0 | K89: 0.03870685615
A90: 88 | B90: 48.7775 | C90: 2.22 | D90: 0.2715261055 | E90: 0 | F90: 0.2715261055 | G90: 0.9867906162 | H90: 0.03394076318 | I90: 0.9867906162 | J90: 0 | K90: 0.03394076318
A91: 89 | B91: 48.785 | C91: 2.28 | D91: 0.2372366788 | E91: 0 | F91: 0.2372366788 | G91: 0.9886961558 | H91: 0.02965458485 | I91: 0.9886961558 | J91: 0 | K91: 0.02965458485
A92: 90 | B92: 48.7925 | C92: 2.34 | D92: 0.2065326038 | E92: 0 | F92: 0.2065326038 | G92: 0.9903581301 | H92: 0.02581657547 | I92: 0.9903581301 | J92: 0 | K92: 0.02581657547
A93: 91 | B93: 48.8 | C93: 2.4 | D93: 0.1791562424 | E93: 0 | F93: 0.1791562424 | G93: 0.9918024641 | H93: 0.02239453029 | I93: 0.9918024641 | J93: 0 | K93: 0.02239453029
A94: 92 | B94: 48.8075 | C94: 2.46 | D94: 0.1548502139 | E94: 0 | F94: 0.1548502139 | G94: 0.9930531492 | H94: 0.01935627673 | I94: 0.9930531492 | J94: 0 | K94: 0.01935627673
A95: 93 | B95: 48.815 | C95: 2.52 | D95: 0.1333608067 | E95: 0 | F95: 0.1333608067 | G95: 0.9941322583 | H95: 0.01667010084 | I95: 0.9941322583 | J95: 0 | K95: 0.01667010084
A96: 94 | B96: 48.8225 | C96: 2.58 | D96: 0.114440872 | E96: 0 | F96: 0.114440872 | G96: 0.9950599842 | H96: 0.01430510899 | I96: 0.9950599842 | J96: 0 | K96: 0.01430510899
A97: 95 | B97: 48.83 | C97: 2.64 | D97: 0.09785221081 | E97: 0 | F97: 0.09785221081 | G97: 0.9958546986 | H97: 0.01223152635 | I97: 0.9958546986 | J97: 0 | K97: 0.01223152635
A98: 96 | B98: 48.8375 | C98: 2.7 | D98: 0.08336747852 | E98: 0 | F98: 0.08336747852 | G98: 0.9965330262 | H98: 0.01042093481 | I98: 0.9965330262 | J98: 0 | K98: 0.01042093481
A99: 97 | B99: 48.845 | C99: 2.76 | D99: 0.07077163519 | E99: 0 | F99: 0.07077163519 | G99: 0.9971099319 | H99: 0.008846454398 | I99: 0.9971099319 | J99: 0 | K99: 0.008846454398
A100: 98 | B100: 48.8525 | C100: 2.82 | D100: 0.05986298021 | E100: 0 | F100: 0.05986298021 | G100: 0.9975988175 | H100: 0.007482872526 | I100: 0.9975988175 | J100: 0 | K100: 0.007482872526
A101: 99 | B101: 48.86 | C101: 2.88 | D101: 0.05045381117 | E101: 0 | F101: 0.05045381117 | G101: 0.9980116241 | H101: 0.006306726396 | I101: 0.9980116241 | J101: 0 | K101: 0.006306726396
A102: 100 | B102: 48.8675 | C102: 2.94 | D102: 0.04237075092 | E102: 0 | F102: 0.04237075092 | G102: 0.9983589388 | H102: 0.005296343865 | I102: 0.9983589388 | J102: 0 | K102: 0.005296343865
A103: 101 | B103: 48.875 | C103: 3 | D103: 0.0354547873 | E103: 0 | F103: 0.0354547873 | G103: 0.998650102 | H103: 0.004431848412 | I103: 0.998650102 | J103: 0 | K103: 0.004431848412
A105: Die Flächen werden als Säulendiagramm erzeugt,
A106: bei dem sich die - sehr schmalen - Säulen berühren
A107: und so als Fläche erscheinen
A108: Die Markierungen nach unten und links in der Verteilungsfunktion
A109: sind "Fehlerindikatoren" (Diagrammelement hinzufügen)
A110: Beides anschaulich beschrieben bei Andreas Thehos:
A111: https://www.youtube.com/watch?v=eBKLXe8JGSY
